lending/lending_fUSD_20250913
["ID","MTS","AMOUNT","RATE_DAILY","PERIOD"]
[385287697,1757748656003,-400.0,0.00031855,2]
[385287698,1757748656013,-400.0,0.00031855,2]
[385287699,1757748656024,-400.0,0.00031855,2]
[385287700,1757748656035,-910.51,0.00031855,2]
[385287701,1757748656045,-400.0,0.00031855,2]
[385287702,1757748656055,-400.0,0.00031855,2]
[385287703,1757748656064,-710.54,0.00031855,2]
[385287704,1757748656074,-404.36,0.00031855,2]
[385287705,1757748656084,-625.95,0.00031855,2]
[385287706,1757748656094,-400.0,0.00031855,2]
[385287707,1757748656104,-400.0,0.00031855,2]
[385287708,1757748656115,-423.39,0.00031855,2]
[385287709,1757748656125,-603.98,0.00031855,2]
[385287710,1757748656136,-400.0,0.00031855,2]
[385287711,1757748656146,-400.0,0.00031855,2]
[385287712,1757748656155,-400.0,0.00031855,2]
[385287713,1757748656164,-627.67,0.00031855,2]
[385287714,1757748656174,-872.25,0.00031855,2]
[385287715,1757748656183,-400.0,0.00031855,2]
[385287716,1757748656192,-643.15,0.00031855,2]
[385287717,1757748656201,-400.0,0.00031855,2]
[385287718,1757748656212,-400.0,0.00031855,2]
[385287719,1757748656223,-81.18126863,0.00031855,2]
[385287720,1757748657024,-318.81873137,0.00031855,2]
[385287721,1757748657034,-400.0,0.00031855,2]
[385287722,1757748657043,-650.84,0.00031855,2]
[385287723,1757748657052,-780.07,0.00031855,2]
[385287724,1757748657061,-400.0,0.00031855,2]
[385287725,1757748657071,-1618.34,0.00031855,2]
[385287726,1757748657080,-400.0,0.00031855,2]
[385287727,1757748657089,-400.0,0.00031855,2]
[385287728,1757748657098,-981.61,0.00031855,2]
[385287729,1757748657107,-532.54,0.00031855,2]
[385287730,1757748657116,-678.37,0.00031855,2]
[385287731,1757748657125,-400.0,0.00031855,2]
[385287732,1757748657134,-400.0,0.00031855,2]
[385287733,1757748657144,-679.23,0.00031855,2]
[385287734,1757748657153,-652.67,0.00031855,2]
[385287735,1757748657162,-2884.46,0.00031855,2]
[385287736,1757748657171,-810.06,0.00031855,2]
[385287737,1757748657180,-400.0,0.00031855,2]
[385287738,1757748657189,-545.02,0.00031855,2]
[385287739,1757748657198,-400.0,0.00031855,2]
[385287740,1757748657207,-400.0,0.00031855,2]
[385287741,1757748657216,-400.0,0.00031855,2]
[385287742,1757748657225,-400.0,0.00031855,2]
[385287743,1757748657234,-625.86,0.00031855,2]
[385287744,1757748657243,-400.0,0.00031855,2]
[385287745,1757748657252,-400.0,0.00031855,2]
[385287746,1757748657261,-872.04,0.00031855,2]
[385287747,1757748657271,-332.96496863,0.00031855,2]
[385287748,1757748657286,-539.07503137,0.00031855,2]
[385287749,1757748657295,-520.94150645,0.00031855,2]
[385287750,1757748657305,-400.0,0.00031855,2]
[385287751,1757748657314,-400.0,0.00031855,2]
[385287752,1757748657323,-400.0,0.00031855,2]
[385287753,1757748657332,-400.0,0.00031855,2]
[385287754,1757748657341,-400.0,0.00031855,2]
[385287755,1757748657350,-640.63,0.00031855,2]
[385287756,1757748657359,-608.01,0.00031855,2]
[385287757,1757748657368,-2129.87,0.00031855,2]
[385287758,1757748657377,-400.0,0.00031855,2]
[385287759,1757748657386,-1075.75,0.00031855,2]
[385287760,1757748657395,-500.0,0.00031855,2]
[385287761,1757748657405,-500.0,0.00031855,2]
[385287762,1757748657414,-400.0,0.00031855,2]
[385287763,1757748657423,-400.0,0.00031855,2]
[385287764,1757748657432,-711.26,0.00031855,2]
[385287765,1757748657442,-563.6,0.00031855,2]
[385287766,1757748657451,-3099.84,0.00031855,2]
[385287767,1757748657460,-1248.17,0.00031855,2]
[385287768,1757748657469,-625.01,0.00031855,2]
[385287769,1757748657479,-400.0,0.00031855,2]
[385287770,1757748657488,-400.0,0.00031855,2]
[385287771,1757748657497,-400.0,0.00031855,2]
[385287772,1757748657506,-238.55014484,0.00031855,2]
[385287773,1757748657610,-82.88952452,0.00031855,2]
[385287774,1757748657760,-78.56033064,0.00031855,2]
[385287775,1757748657770,-400.0,0.00031855,2]
[385287776,1757748657782,-210.31276334,0.00031855,2]
[385287777,1757748657793,-640.41723666,0.00031855,2]
[385287778,1757748657802,-725.93,0.00031855,2]
[385287779,1757748657811,-661.46,0.00031855,2]
[385287780,1757748657820,-400.0,0.00031855,2]
[385287781,1757748657829,-400.0,0.00031855,2]
[385287782,1757748657838,-400.0,0.00031855,2]
[385287783,1757748657848,-2923.74,0.00031855,2]
[385287784,1757748657857,-400.0,0.00031855,2]
[385287785,1757748657867,-400.0,0.00031855,2]
[385287786,1757748657875,-844.96449743,0.00031856,2]
[385287787,1757748657885,-362.14,0.00031858,2]
[385287788,1757748657895,-5000.0,0.00031862,2]
[385287789,1757748657904,-1084.16,0.00031864,2]
[385287790,1757748657913,-500.0,0.00031864,2]
[385287791,1757748657923,-769.12,0.00031864,2]
[385287792,1757748657932,-500.0,0.00031865,2]
[385287793,1757748657944,-500.0,0.00031865,2]
[385287794,1757748657954,-455.14030503,0.00031865,2]
[385287795,1757748657963,-895.07,0.00031865,2]
[385287796,1757748657972,-895.07,0.00031865,2]
[385287797,1757748657981,-500.0,0.00031865,2]
[385287798,1757748657990,-500.0,0.00031865,2]
[385287799,1757748657999,-242.11826088,0.00031865,2]
[385287804,1757749489456,161.42,0.00014794,2]
[385287806,1757749637123,-241.66374601,0.0002,2]
[385287807,1757749755132,-567.49225399,0.0002,2]
[385287808,1757749755155,-327.869,0.0002,2]
[385287809,1757749755178,-733.210524,0.00024532,2]
[385287810,1757749755202,-172.07220493,0.00024549,2]
[385287811,1757749755225,-300.0,0.00024648,2]
[385287812,1757749755246,-300.0,0.00024648,2]
[385287813,1757749755274,-500.0,0.00024649,2]
[385287814,1757749755306,-500.0,0.00024649,2]
[385287815,1757749755332,-500.0,0.00024649,2]
[385287816,1757749755357,-500.0,0.00024649,2]
[385287817,1757749755384,-444.40320308,0.00024649,2]
[385287825,1757749832138,-1339.97339816,0.000249,2]
[385287827,1757749832148,-4167.878994,0.00027024,2]
[385287828,1757749832157,-157.86,0.00027397,2]
[385287829,1757749832166,-300.0,0.00029299,2]
[385287830,1757749832177,-1427.0,0.000293,2]
[385287831,1757749832194,-150.0,0.00029304,2]
[385287832,1757749832203,-163.1,0.00029386,30]
[385287833,1757749832212,-217.32502589,0.00029437,2]
[385287834,1757749832222,-150.0,0.00029438,7]
[385287835,1757749832231,-327.88,0.00029509,2]
[385287836,1757749832241,-254.88737605,0.00029571,2]
[385287837,1757749832250,-161.42,0.00029589,2]
[385287838,1757749832259,-292.4497262,0.00029705,2]
[385287839,1757749832268,-330.01207635,0.00029838,2]
[385287840,1757749832278,-1175.92325344,0.00029913,2]
[385287841,1757749832287,-367.57442651,0.00029972,2]
[385287842,1757749832296,-171.0,0.0003,14]
[385287843,1757749832305,-178.0,0.0003,14]
[385287844,1757749832314,-405.13677666,0.00030105,2]
[385287845,1757749832324,-228.5363956,0.00030135,2]
[385287846,1757749832333,-400.0,0.00030136,2]
[385287847,1757749832342,-511.29509215,0.00030136,2]
[385287848,1757749832351,-400.0,0.00030136,2]
[385287849,1757749832360,-400.0,0.00030136,2]
[385287850,1757749832373,-400.0,0.00030136,2]
[385287851,1757749832382,-400.0,0.00030136,2]
[385287852,1757749832391,-400.0,0.00030136,2]
[385287853,1757749832400,-400.0,0.00030136,2]
[385287854,1757749832410,-400.0,0.00030136,2]
[385287855,1757749832420,-166.79612495,0.00030136,2]
[385287856,1757749832452,-233.20387505,0.00030136,2]
[385287857,1757749832461,-460.47437108,0.00030136,2]
[385287858,1757749832470,-400.0,0.00030136,2]
[385287859,1757749832479,-400.0,0.00030136,2]
[385287860,1757749832488,-366.37582023,0.00030136,2]
[385287861,1757749832502,-33.62417977,0.00030136,2]
[385287862,1757749832511,-400.0,0.00030136,2]
[385287863,1757749832520,-259.48042779,0.00030136,2]
[385287864,1757749832536,-140.51957221,0.00030136,2]
[385287865,1757749832545,-400.0,0.00030136,2]
[385287866,1757749832554,-340.83973525,0.00030136,2]
[385287867,1757749832565,-62.42725319,0.00030136,2]
[385287868,1757749832574,-406.2800603,0.00030136,2]
[385287869,1757749832583,-195.409435,0.00030136,2]
[385287870,1757749832593,-759.28,0.00030136,2]
[385287871,1757749832603,-704.65,0.00030136,2]
[385287872,1757749832612,-604.09,0.00030136,2]
[385287873,1757749832621,-563.34,0.00030136,2]
[385287874,1757749832630,-900.58,0.00030136,2]
[385287875,1757749832640,-2694.22,0.00030136,2]
[385287876,1757749832650,-709.7,0.00030136,2]
[385287877,1757749832659,-5547.69,0.00030136,2]
[385287879,1757749832669,-883.04,0.00030136,2]
[385287881,1757749832679,-400.0,0.00030136,2]
[385287882,1757749832688,-1540.2,0.00030136,2]
[385287883,1757749832697,-1071.49,0.00030136,2]
[385287884,1757749832706,-911.28,0.00030136,2]
[385287885,1757749832715,-903.31,0.00030136,2]
[385287886,1757749832724,-742.07,0.00030136,2]
[385287887,1757749832734,-954.73,0.00030136,2]
[385287888,1757749832743,-678.81,0.00030136,2]
[385287889,1757749832753,-941.48,0.00030136,2]
[385287890,1757749832762,-543.17,0.00030136,2]
[385287891,1757749832771,-400.0,0.00030136,2]
[385287892,1757749832781,-3145.37,0.00030136,2]
[385287893,1757749832790,-851.42,0.00030136,2]
[385287894,1757749832799,-400.0,0.00030136,2]
[385287895,1757749832809,-744.37,0.00030136,2]
[385287896,1757749832818,-735.5,0.00030136,2]
[385287897,1757749832828,-442.69912682,0.00030239,2]
[385287898,1757749832838,-277.35679052,0.00030273,2]
[385287899,1757749832847,-480.26147697,0.00030373,2]
[385287900,1757749832856,-404.45522279,0.0003041,2]
[385287901,1757749832866,-400.0,0.0003041,2]
[385287902,1757749832876,-400.0,0.0003041,2]
[385287903,1757749832886,-400.0,0.0003041,2]
[385287904,1757749832895,-400.0,0.0003041,2]
[385287905,1757749832904,-400.0,0.0003041,2]
[385287906,1757749832914,-400.0,0.0003041,2]
[385287907,1757749832923,-402.20037432,0.0003041,2]
[385287908,1757749832932,-400.0,0.0003041,2]
[385287909,1757749832942,-400.0,0.0003041,2]
[385287910,1757749832951,-400.0,0.0003041,2]
[385287911,1757749832960,-400.0,0.0003041,2]
[385287912,1757749832969,-759.28,0.0003041,2]
[385287913,1757749832979,-704.65,0.0003041,2]
[385287914,1757749832988,-604.09,0.0003041,2]
[385287915,1757749832997,-563.34,0.0003041,2]
[385287916,1757749833006,-900.58,0.0003041,2]
[385287917,1757749833015,-2694.22,0.0003041,2]
[385287918,1757749833024,-709.7,0.0003041,2]
[385287919,1757749833034,-5547.69,0.0003041,2]
[385287920,1757749833043,-883.04,0.0003041,2]
[385287921,1757749833052,-400.0,0.0003041,2]
[385287922,1757749833062,-1540.2,0.0003041,2]
[385287923,1757749833072,-1071.49,0.0003041,2]
[385287924,1757749833081,-911.28,0.0003041,2]
[385287925,1757749833090,-903.31,0.0003041,2]
[385287926,1757749833099,-742.07,0.0003041,2]
[385287927,1757749833108,-954.73,0.0003041,2]
[385287928,1757749833117,-678.81,0.0003041,2]
[385287929,1757749833126,-941.48,0.0003041,2]
[385287930,1757749833135,-543.17,0.0003041,2]
[385287931,1757749833144,-400.0,0.0003041,2]
[385287932,1757749833153,-3145.37,0.0003041,2]
[385287933,1757749833163,-851.42,0.0003041,2]
[385287934,1757749833171,-400.0,0.0003041,2]
[385287935,1757749833180,-744.37,0.0003041,2]
[385287936,1757749833190,-735.5,0.0003041,2]
[385287937,1757749833199,-178.0,0.00030411,14]
[385287938,1757749833208,-517.82382712,0.00030506,2]
[385287939,1757749833217,-4494.7889421,0.00030634,2]
[385287940,1757749833226,-555.38617728,0.0003064,2]
[385287941,1757749833235,-400.0,0.00030684,2]
[385287942,1757749833244,-403.48832922,0.00030684,2]
[385287943,1757749833254,-410.50179174,0.00030684,2]
[385287944,1757749833264,-409.49174372,0.00030684,2]
[385287945,1757749833273,-411.65719909,0.00030684,2]
[385287946,1757749833283,-400.0,0.00030684,2]
[385287947,1757749833292,-402.39501303,0.00030684,2]
[385287948,1757749833301,-759.28,0.00030684,2]
[385287949,1757749833310,-704.65,0.00030684,2]
[385287950,1757749833319,-604.09,0.00030684,2]
[385287951,1757749833329,-563.34,0.00030684,2]
[385287952,1757749833338,-900.58,0.00030684,2]
[385287953,1757749833348,-2694.22,0.00030684,2]
[385287954,1757749833358,-709.7,0.00030684,2]
[385287955,1757749833378,-5547.69,0.00030684,2]
[385287956,1757749833388,-883.04,0.00030684,2]
[385287957,1757749833399,-400.0,0.00030684,2]
[385287958,1757749833408,-1540.2,0.00030684,2]
[385287959,1757749833420,-1071.49,0.00030684,2]
[385287960,1757749833429,-911.28,0.00030684,2]
[385287961,1757749833439,-903.31,0.00030684,2]
[385287962,1757749833449,-742.07,0.00030684,2]
[385287963,1757749833458,-954.73,0.00030684,2]
[385287964,1757749833467,-678.81,0.00030684,2]
[385287965,1757749833476,-941.48,0.00030684,2]
[385287966,1757749833486,-543.17,0.00030684,2]
[385287967,1757749833496,-400.0,0.00030684,2]
[385287968,1757749833505,-3145.37,0.00030684,2]
[385287969,1757749833514,-851.42,0.00030684,2]
[385287970,1757749833524,-443.52185082,0.00030684,2]
[385287971,1757749833533,-744.37,0.00030684,2]
[385287972,1757749833543,-735.5,0.00030684,2]
[385287973,1757749833552,-592.94852743,0.00030773,2]
[385287974,1757749833562,-630.51087759,0.00030907,2]
[385287975,1757749833571,-759.28,0.00030958,2]
[385287976,1757749833581,-704.65,0.00030958,2]
[385287977,1757749833590,-604.09,0.00030958,2]
[385287978,1757749833600,-563.34,0.00030958,2]
[385287979,1757749833609,-900.58,0.00030958,2]
[385287980,1757749833618,-2694.22,0.00030958,2]
[385287981,1757749833628,-709.7,0.00030958,2]
[385287982,1757749833637,-5547.69,0.00030958,2]
[385287983,1757749833647,-883.04,0.00030958,2]
[385287984,1757749833657,-400.0,0.00030958,2]
[385287985,1757749833667,-1540.2,0.00030958,2]
[385287986,1757749833676,-1071.49,0.00030958,2]
[385287987,1757749833685,-911.28,0.00030958,2]
[385287988,1757749833695,-903.31,0.00030958,2]
[385287989,1757749833705,-742.07,0.00030958,2]
[385287990,1757749833714,-954.73,0.00030958,2]
[385287991,1757749833725,-678.81,0.00030958,2]
[385287992,1757749833735,-941.48,0.00030958,2]
[385287993,1757749833744,-543.17,0.00030958,2]
[385287994,1757749833753,-400.0,0.00030958,2]
[385287995,1757749833763,-1657.3801939,0.00030958,2]
[385287996,1757749833801,-1487.9898061,0.00030958,2]
[385287997,1757749833810,-851.42,0.00030958,2]
[385287998,1757749833820,-744.37,0.00030958,2]
[385287999,1757749833830,-735.5,0.00030958,2]
[385288000,1757749833839,-668.07322774,0.00031041,2]
[385288001,1757749833848,-185.483,0.00031058,28]
[385288002,1757749833858,-200.0,0.000311,11]
[385288003,1757749833867,-826.41548452,0.00031131,2]
[385288004,1757749833877,-705.63557789,0.00031174,2]
[385288005,1757749833886,-500.0,0.000312,11]
[385288006,1757749833897,-826.4154845,0.00031216,2]
[385288007,1757749833906,-400.0,0.00031231,2]
[385288008,1757749833916,-400.0,0.00031231,2]
[385288009,1757749833925,-401.53192233,0.00031231,2]
[385288010,1757749833935,-400.0,0.00031231,2]
[385288011,1757749833945,-400.0,0.00031231,2]
[385288012,1757749833954,-400.0,0.00031231,2]
[385288013,1757749833964,-400.0,0.00031231,2]
[385288014,1757749833973,-400.0,0.00031231,2]
[385288015,1757749833983,-400.0,0.00031231,2]
[385288016,1757749833992,-400.0,0.00031231,2]
[385288017,1757749834001,-400.0,0.00031231,2]
[385288018,1757749834011,-400.0,0.00031231,2]
[385288019,1757749834020,-400.0,0.00031231,2]
[385288020,1757749834029,-400.0,0.00031231,2]
[385288021,1757749834039,-400.0,0.00031231,2]
[385288022,1757749834048,-400.0,0.00031231,2]
[385288023,1757749834057,-400.0,0.00031231,2]
[385288024,1757749834067,-400.0,0.00031231,2]
[385288025,1757749834076,-400.0,0.00031231,2]
[385288026,1757749834086,-221.36493921,0.00031231,2]
[385288027,1757749834097,-178.63506079,0.00031231,2]
[385288028,1757749834107,-400.0,0.00031231,2]
[385288029,1757749834116,-400.0,0.00031231,2]
[385288030,1757749834125,-400.0,0.00031231,2]
[385288031,1757749834135,-408.55605028,0.00031231,2]
[385288032,1757749834144,-400.0,0.00031231,2]
[385288033,1757749834153,-400.0,0.00031231,2]
[385288034,1757749834163,-301.60206056,0.00031231,2]
[385288035,1757749834172,-401.62787494,0.00031231,2]
[385288036,1757749834182,-400.0,0.00031231,2]
[385288037,1757749834191,-400.0,0.00031231,2]
[385288038,1757749834201,-633.58,0.00031231,2]
[385288039,1757749834211,-1928.84,0.00031231,2]
[385288040,1757749834220,-400.0,0.00031231,2]
[385288041,1757749834229,-859.59,0.00031231,2]
[385288042,1757749834238,-934.78,0.00031231,2]
[385288043,1757749834248,-552.16,0.00031231,2]
[385288044,1757749834258,-1191.8,0.00031231,2]
[385288045,1757749834268,-841.13,0.00031231,2]
[385288046,1757749834277,-624.49,0.00031231,2]
[385288047,1757749834287,-959.27,0.00031231,2]
[385288048,1757749834296,-1737.46,0.00031231,2]
[385288049,1757749834306,-448.86,0.00031231,2]
[385288050,1757749834315,-733.23,0.00031231,2]
[385288051,1757749834325,-551.02,0.00031231,2]
[385288052,1757749834334,-572.71,0.00031231,2]
[385288053,1757749834344,-575.17,0.00031231,2]
[385288054,1757749834354,-707.28,0.00031231,2]
[385288055,1757749834365,-461.68,0.00031231,2]
[385288056,1757749834375,-733.27,0.00031231,2]
[385288057,1757749834384,-1821.57,0.00031231,2]
[385288058,1757749834394,-3111.29,0.00031231,2]
[385288059,1757749834404,-718.9,0.00031231,2]
[385288060,1757749834413,-608.7,0.00031231,2]
[385288061,1757749834423,-1919.6,0.00031231,2]
[385288062,1757749834432,-549.83,0.00031231,2]
[385288063,1757749834443,-3346.03,0.00031231,2]
[385288064,1757749834454,-759.28,0.00031232,2]
[385288065,1757749834463,-704.65,0.00031232,2]
[385288066,1757749834473,-604.09,0.00031232,2]
[385288067,1757749834482,-563.34,0.00031232,2]
[385288068,1757749834492,-900.58,0.00031232,2]
[385288069,1757749834501,-2694.22,0.00031232,2]
[385288070,1757749834511,-709.7,0.00031232,2]
[385288071,1757749834520,-5547.69,0.00031232,2]
[385288072,1757749834530,-883.04,0.00031232,2]
[385288073,1757749834539,-400.0,0.00031232,2]
[385288074,1757749834548,-1540.2,0.00031232,2]
[385288075,1757749834557,-1071.49,0.00031232,2]
[385288076,1757749834567,-911.28,0.00031232,2]
[385288077,1757749834576,-903.31,0.00031232,2]
[385288078,1757749834586,-742.07,0.00031232,2]
[385288079,1757749834596,-954.73,0.00031232,2]
[385288080,1757749834605,-678.81,0.00031232,2]
[385288081,1757749834615,-941.48,0.00031232,2]
[385288082,1757749834624,-543.17,0.00031232,2]
[385288083,1757749834634,-279.93016537,0.00031232,2]
[385288084,1757749834643,-3145.37,0.00031232,2]
[385288085,1757749834653,-851.42,0.00031232,2]
[385288086,1757749834663,-744.37,0.00031232,2]
[385288087,1757749834672,-735.5,0.00031232,2]
[385288088,1757749834682,-800.0,0.000313,11]
[385288089,1757749834691,-826.4154845,0.00031302,2]
[385288090,1757749834701,-743.19792805,0.00031308,2]
[385288091,1757749834710,-826.4154845,0.00031387,2]
[385288092,1757749834719,-1100.0,0.000314,11]
[385288093,1757749834729,-171.86487572,0.00031406,2]
[385288094,1757749834739,-780.7602782,0.00031441,2]
[385288095,1757749834748,-826.4154845,0.00031473,2]
[385288096,1757749834758,-1300.0,0.000315,11]
[385288097,1757749834767,-400.0,0.00031505,2]
[385288098,1757749834776,-400.0,0.00031505,2]
[385288099,1757749834786,-451.01782047,0.00031505,2]
[385288100,1757749834795,-400.0,0.00031505,2]
[385288101,1757749834804,-402.48079069,0.00031505,2]
[385288102,1757749834813,-400.0,0.00031505,2]
[385288103,1757749834822,-402.54968566,0.00031505,2]
[385288104,1757749834831,-402.65918337,0.00031505,2]
[385288105,1757749834841,-400.0,0.00031505,2]
[385288106,1757749834851,-400.0,0.00031505,2]
[385288107,1757749834860,-401.21401356,0.00031505,2]
[385288108,1757749834870,-400.0,0.00031505,2]
[385288109,1757749834879,-400.0,0.00031505,2]
[385288110,1757749834888,-438.12892707,0.00031505,2]
[385288111,1757749834898,-327.76444967,0.00031505,2]
[385288112,1757749834908,-400.0,0.00031505,2]
[385288113,1757749834917,-169.37503299,0.00031505,2]
[385288114,1757749834927,-400.0,0.00031505,2]
[385288115,1757749834936,-398.78315672,0.00031505,2]
[385288116,1757749834945,-400.0,0.00031505,2]
[385288117,1757749834954,-400.0,0.00031505,2]
[385288118,1757749834963,-398.0,0.00031505,2]
[385288119,1757749834973,-633.58,0.00031505,2]
[385288120,1757749834982,-1928.84,0.00031505,2]
[385288121,1757749834991,-400.0,0.00031505,2]
[385288122,1757749835001,-859.59,0.00031505,2]
[385288123,1757749835010,-934.78,0.00031505,2]
[385288124,1757749835020,-552.16,0.00031505,2]
[385288125,1757749835029,-1191.8,0.00031505,2]
[385288126,1757749835038,-841.13,0.00031505,2]
[385288127,1757749835049,-624.49,0.00031505,2]
[385288128,1757749835059,-959.27,0.00031505,2]
[385288129,1757749835068,-1737.46,0.00031505,2]
[385288130,1757749835078,-448.86,0.00031505,2]
[385288131,1757749835088,-733.23,0.00031505,2]
[385288132,1757749835320,-400.0,0.00031505,2]
[385288133,1757749835330,-551.02,0.00031505,2]
[385288134,1757749835339,-400.0,0.00031505,2]
[385288135,1757749835348,-245.546721,0.00031505,2]
[385288136,1757749835358,-572.71,0.00031505,2]
[385288137,1757749835371,-575.17,0.00031505,2]
[385288138,1757749835381,-401.31184419,0.00031505,2]
[385288139,1757749835390,-400.0,0.00031505,2]
[385288140,1757749835399,-707.28,0.00031505,2]
[385288141,1757749835410,-400.0,0.00031505,2]
[385288142,1757749835419,-400.0,0.00031505,2]
[385288143,1757749835428,-461.68,0.00031505,2]
[385288144,1757749835438,-400.0,0.00031505,2]
[385288145,1757749835448,-400.0,0.00031505,2]
[385288146,1757749835458,-733.27,0.00031505,2]
[385288147,1757749835468,-1821.57,0.00031505,2]
[385288148,1757749835478,-400.0,0.00031505,2]
[385288149,1757749835488,-400.0,0.00031505,2]
[385288150,1757749835497,-3111.29,0.00031505,2]
[385288151,1757749835507,-400.0,0.00031505,2]
[385288152,1757749835516,-400.0,0.00031505,2]
[385288153,1757749835526,-718.9,0.00031505,2]
[385288154,1757749835535,-608.7,0.00031505,2]
[385288155,1757749835545,-400.0,0.00031505,2]
[385288156,1757749835555,-402.00301001,0.00031505,2]
[385288157,1757749835564,-1919.6,0.00031505,2]
[385288158,1757749835574,-549.83,0.00031505,2]
[385288159,1757749835583,-674.91,0.00031505,2]
[385288160,1757749835593,-400.0,0.00031505,2]
[385288161,1757749835602,-400.0,0.00031505,2]
[385288162,1757749835611,-400.0,0.00031505,2]
[385288163,1757749835621,-400.0,0.00031505,2]
[385288164,1757749835631,-510.47,0.00031505,2]
[385288165,1757749835641,-400.0,0.00031505,2]
[385288166,1757749835651,-400.0,0.00031505,2]
[385288167,1757749835661,-3346.03,0.00031505,2]
[385288168,1757749835670,-400.0,0.00031505,2]
[385288169,1757749835679,-400.0,0.00031505,2]
[385288170,1757749835689,-759.28,0.00031506,2]
[385288171,1757749835699,-704.65,0.00031506,2]
[385288172,1757749835709,-604.09,0.00031506,2]
[385288173,1757749835719,-563.34,0.00031506,2]
[385288174,1757749835729,-900.58,0.00031506,2]
[385288175,1757749835740,-2694.22,0.00031506,2]
[385288176,1757749835749,-709.7,0.00031506,2]
[385288177,1757749835759,-5547.69,0.00031506,2]
[385288178,1757749835768,-883.04,0.00031506,2]
[385288179,1757749835777,-400.0,0.00031506,2]
[385288180,1757749835786,-1540.2,0.00031506,2]
[385288181,1757749835795,-1071.49,0.00031506,2]
[385288182,1757749835805,-911.28,0.00031506,2]
[385288183,1757749835814,-903.31,0.00031506,2]
[385288184,1757749835824,-742.07,0.00031506,2]
[385288185,1757749835833,-954.73,0.00031506,2]
[385288186,1757749835842,-678.81,0.00031506,2]
[385288187,1757749835852,-941.48,0.00031506,2]
[385288188,1757749835861,-543.17,0.00031506,2]
[385288189,1757749835870,-3145.37,0.00031506,2]
[385288190,1757749835879,-851.42,0.00031506,2]
[385288191,1757749835889,-744.37,0.00031506,2]
[385288192,1757749835898,-735.5,0.00031506,2]
[385288193,1757749835908,-826.4154845,0.00031558,2]
[385288194,1757749835917,-818.32262836,0.00031575,2]
[385288195,1757749835926,-470.4157,0.00031596,2]
[385288196,1757749835935,-200.0,0.000316,11]
[385288197,1757749835945,-287.61899177,0.00031642,2]
[385288198,1757749835954,-826.4154845,0.00031644,2]
[385288199,1757749835963,-171.0,0.00031644,14]
[385288200,1757749835973,-178.0,0.00031644,14]
[385288201,1757749835983,-200.0,0.00031662,2]
[385288202,1757749835992,-164.8694139,0.00031679,2]
[385288203,1757749836001,-14591.33220286,0.00031696,2]
[385288204,1757749836010,-200.0,0.000317,11]
[385288205,1757749836020,-164.86941384,0.00031704,2]
[385288206,1757749836029,-855.88497851,0.00031708,2]
[385288207,1757749836038,-164.86941384,0.00031728,2]
[385288208,1757749836047,-826.4154845,0.00031729,2]
[385288209,1757749836057,-499.65,0.00031741,2]
[385288210,1757749836067,-400.0,0.00031741,2]
[385288211,1757749836076,-400.0,0.00031741,2]